[Event "*** Titled Tuesday Blitz"]
[Site "Chess.com"]
[Date "2018.01.02"]
[Round "9"]
[White "BillCoe"]
[Black "aa175"]
[Result "1/2-1/2"]
[WhiteElo "1927"]
[BlackElo "1890"]
[TimeControl "180+2"]
[EndTime "15:02:10 PST"]
[Termination "Game drawn by repetition"]

1. e4 {[%clk 0:03:01.9]} 1... e5 {[%clk 0:03:00.4]} 2. Nf3 {[%clk 0:03:02.6]}
2... Nc6 {[%clk 0:03:01]} 3. Bb5 {[%clk 0:03:03.9]} 3... Nf6 {[%clk 0:03:00.7]}
4. O-O {[%clk 0:03:03.2]} 4... Bc5 {[%clk 0:03:01.3]} 5. d3 {[%clk 0:03:02.7]}
5... d6 {[%clk 0:02:57.5]} 6. h3 {[%clk 0:03:02]} 6... O-O {[%clk 0:02:57]} 7.
c3 {[%clk 0:03:03]} 7... a6 {[%clk 0:02:54]} 8. Ba4 {[%clk 0:03:02.9]} 8... Be6
{[%clk 0:02:53.8]} 9. b4 {[%clk 0:03:01.4]} 9... Ba7 {[%clk 0:02:53.8]} 10. Bc2
{[%clk 0:03:01.7]} 10... d5 {[%clk 0:02:52.2]} 11. Qe2 {[%clk 0:02:45.4]} 11...
b5 {[%clk 0:02:44.7]} 12. Nbd2 {[%clk 0:02:36.2]} 12... d4 {[%clk 0:02:43.1]}
13. cxd4 {[%clk 0:02:13.3]} 13... Nxd4 {[%clk 0:02:28]} 14. Nxd4 {[%clk
0:02:12.3]} 14... Bxd4 {[%clk 0:02:29.9]} 15. Rb1 {[%clk 0:01:40.3]} 15... Bxa2
{[%clk 0:02:27.6]} 16. Bb2 {[%clk 0:01:38.6]} 16... Bxb1 {[%clk 0:02:27.4]} 17.
Rxb1 {[%clk 0:01:40.5]} 17... Bxb2 {[%clk 0:02:27.6]} 18. Rxb2 {[%clk
0:01:42.3]} 18... Qd4 {[%clk 0:02:27.3]} 19. Rb1 {[%clk 0:01:39.2]} 19... Rfd8
{[%clk 0:02:16.8]} 20. Nf3 {[%clk 0:01:40.2]} 20... Qc3 {[%clk 0:02:09.9]} 21.
Rb3 {[%clk 0:01:38.1]} 21... Qa1+ {[%clk 0:02:10]} 22. Rb1 {[%clk 0:01:38.2]}
22... Qc3 {[%clk 0:01:43.9]} 23. Rb3 {[%clk 0:01:37.2]} 23... Qc6 {[%clk
0:01:36.9]} 24. Nxe5 {[%clk 0:01:37.3]} 24... Qe6 {[%clk 0:01:35]} 25. Nf3
{[%clk 0:01:30.9]} 25... Nd5 {[%clk 0:01:27.1]} 26. Qd2 {[%clk 0:01:24.1]} 26...
Nf6 {[%clk 0:01:19.8]} 27. Qe2 {[%clk 0:01:09.6]} 27... Nh5 {[%clk 0:01:13.1]}
28. Qe3 {[%clk 0:01:09.7]} 28... Qb6 {[%clk 0:01:05]} 29. d4 {[%clk 0:01:05.4]}
29... a5 {[%clk 0:00:51.2]} 30. bxa5 {[%clk 0:01:04.8]} 30... Qxa5 {[%clk
0:00:51.5]} 31. g4 {[%clk 0:01:02.1]} 31... Nf6 {[%clk 0:00:50]} 32. e5 {[%clk
0:00:50.1]} 32... Nd5 {[%clk 0:00:35.2]} 33. Qe4 {[%clk 0:00:51.1]} 33... g6
{[%clk 0:00:34.2]} 34. e6 {[%clk 0:00:43.9]} 34... f6 {[%clk 0:00:09.8]} 35. e7
{[%clk 0:00:43.4]} 35... Nxe7 {[%clk 0:00:09.3]} 36. Qxe7 {[%clk 0:00:43.4]}
36... Qb6 {[%clk 0:00:08.4]} 37. Rc3 {[%clk 0:00:38.6]} 37... Qd6 {[%clk
0:00:08.3]} 38. Rxc7 {[%clk 0:00:37]} 38... Qxe7 {[%clk 0:00:08.4]} 39. Rxe7
{[%clk 0:00:38.9]} 39... Ra1+ {[%clk 0:00:09]} 40. Kg2 {[%clk 0:00:38.9]} 40...
Ra3 {[%clk 0:00:09.6]} 41. Rb7 {[%clk 0:00:35.8]} 41... Rc3 {[%clk 0:00:08.3]}
42. Be4 {[%clk 0:00:33.5]} 42... Rb3 {[%clk 0:00:07.5]} 43. Bc6 {[%clk
0:00:26.5]} 43... b4 {[%clk 0:00:06.5]} 44. d5 {[%clk 0:00:26.7]} 44... Kh8
{[%clk 0:00:04.6]} 45. Nd4 {[%clk 0:00:25]} 45... Rb1 {[%clk 0:00:05.6]} 46. Ne6
{[%clk 0:00:25]} 46... Rg8 {[%clk 0:00:04.6]} 47. Rf7 {[%clk 0:00:22.3]} 47...
Rd1 {[%clk 0:00:04.9]} 48. Rxf6 {[%clk 0:00:21.3]} 48... b3 {[%clk 0:00:06.2]}
49. Ng5 {[%clk 0:00:14.3]} 49... b2 {[%clk 0:00:05.1]} 50. Rf7 {[%clk
0:00:15.5]} 50... Rg7 {[%clk 0:00:05.2]} 51. Rf8+ {[%clk 0:00:16.2]} 51... Rg8
{[%clk 0:00:06.1]} 52. Rf7 {[%clk 0:00:16]} 52... Rg7 {[%clk 0:00:06.4]} 53.
Rf8+ {[%clk 0:00:16.9]} 53... Rg8 {[%clk 0:00:07.4]} 54. Rf7 {[%clk 0:00:15.8]}
54... Rg7 {[%clk 0:00:08.3]} 55. Rf8+ {[%clk 0:00:15.2]} 55... Rg8 {[%clk
0:00:09.3]} 56. Rf7 {[%clk 0:00:15.9]} 1/2-1/2

[Event "*** Titled Tuesday Blitz"]
[Site "Chess.com"]
[Date "2018.01.02"]
[Round "9"]
[White "nickmatta"]
[Black "Jbd735"]
[Result "0-1"]
[WhiteElo "2208"]
[BlackElo "2295"]
[TimeControl "180+2"]
[EndTime "15:02:26 PST"]
[Termination "Jbd735 won on time"]

1. d4 {[%clk 0:03:01.9]} 1... d5 {[%clk 0:03:00.6]} 2. c4 {[%clk 0:03:02]} 2...
c6 {[%clk 0:03:01.5]} 3. Nf3 {[%clk 0:03:03.2]} 3... e6 {[%clk 0:03:02.1]} 4.
Qc2 {[%clk 0:03:03.8]} 4... Nf6 {[%clk 0:03:02.2]} 5. g3 {[%clk 0:03:04.9]} 5...
Nbd7 {[%clk 0:02:58.2]} 6. Bg2 {[%clk 0:03:06]} 6... Bd6 {[%clk 0:02:53.3]} 7.
O-O {[%clk 0:03:06.2]} 7... O-O {[%clk 0:02:54.3]} 8. Nbd2 {[%clk 0:03:07.3]}
8... e5 {[%clk 0:02:43.7]} 9. cxd5 {[%clk 0:03:07.4]} 9... cxd5 {[%clk
0:02:30.5]} 10. dxe5 {[%clk 0:03:08.1]} 10... Nxe5 {[%clk 0:02:31.5]} 11. Nxe5
{[%clk 0:03:09.3]} 11... Bxe5 {[%clk 0:02:32.7]} 12. Nf3 {[%clk 0:03:11.2]}
12... Bd6 {[%clk 0:02:20.1]} 13. Rd1 {[%clk 0:03:11.7]} 13... h6 {[%clk
0:02:10.6]} 14. Be3 {[%clk 0:03:03.8]} 14... Be6 {[%clk 0:02:01.5]} 15. Nd4
{[%clk 0:03:00.7]} 15... Bd7 {[%clk 0:01:57.6]} 16. Qb3 {[%clk 0:02:56.7]} 16...
Qa5 {[%clk 0:01:49.7]} 17. Qxb7 {[%clk 0:02:30.6]} 17... Rfb8 {[%clk 0:01:24.8]}
18. Nc6 {[%clk 0:02:31.6]} 18... Rxb7 {[%clk 0:01:23.6]} 19. Nxa5 {[%clk
0:02:32.5]} 19... Rxb2 {[%clk 0:01:23.9]} 20. Bxd5 {[%clk 0:02:31.3]} 20... Nxd5
{[%clk 0:00:50.6]} 21. Rxd5 {[%clk 0:02:33.2]} 21... Bb4 {[%clk 0:00:50.4]} 22.
Nc4 {[%clk 0:01:58.8]} 22... Be6 {[%clk 0:00:46.6]} 23. Nxb2 {[%clk 0:01:59.7]}
23... Bxd5 {[%clk 0:00:47.5]} 24. Nd3 {[%clk 0:02:00.6]} 24... Be7 {[%clk
0:00:44.3]} 25. a4 {[%clk 0:01:57.7]} 25... a5 {[%clk 0:00:44.9]} 26. Bc5 {[%clk
0:01:49.6]} 26... Bf6 {[%clk 0:00:43.9]} 27. Rb1 {[%clk 0:01:48.2]} 27... Bc6
{[%clk 0:00:43.1]} 28. Nf4 {[%clk 0:00:54.8]} 28... Bxa4 {[%clk 0:00:37.8]} 29.
Nd5 {[%clk 0:00:56.1]} 29... Bd8 {[%clk 0:00:32.7]} 30. Bb6 {[%clk 0:00:52.5]}
30... Bc6 {[%clk 0:00:21.5]} 31. Bxd8 {[%clk 0:00:43.1]} 31... Bxd5 {[%clk
0:00:22.4]} 32. Be7 {[%clk 0:00:38.3]} 32... Re8 {[%clk 0:00:21.4]} 33. Rb5
{[%clk 0:00:21.4]} 33... Bc4 {[%clk 0:00:22]} 34. Re5 {[%clk 0:00:19.3]} 34...
a4 {[%clk 0:00:19.9]} 35. Re3 {[%clk 0:00:20.4]} 35... f6 {[%clk 0:00:15.8]} 36.
Kf1 {[%clk 0:00:14.1]} 36... Kf7 {[%clk 0:00:15.1]} 37. Ba3 {[%clk 0:00:15.1]}
37... Rxe3 {[%clk 0:00:15.3]} 38. fxe3 {[%clk 0:00:17]} 38... h5 {[%clk
0:00:13.5]} 39. Ke1 {[%clk 0:00:16.6]} 39... Ke6 {[%clk 0:00:14.6]} 40. Kd2
{[%clk 0:00:18]} 40... Kd5 {[%clk 0:00:14.9]} 41. Bf8 {[%clk 0:00:14.1]} 41...
g6 {[%clk 0:00:15.2]} 42. Bg7 {[%clk 0:00:14.9]} 42... Ke5 {[%clk 0:00:13.7]}
43. Bf8 {[%clk 0:00:13.8]} 43... Bb5 {[%clk 0:00:12.6]} 44. Ke1 {[%clk
0:00:11.6]} 44... Kf5 {[%clk 0:00:12.1]} 45. Be7 {[%clk 0:00:12.7]} 45... Ke6
{[%clk 0:00:10.9]} 46. Bc5 {[%clk 0:00:12.1]} 46... Kd5 {[%clk 0:00:11.8]} 47.
Be7 {[%clk 0:00:12.7]} 47... f5 {[%clk 0:00:11]} 48. Kd2 {[%clk 0:00:13.3]}
48... Kc4 {[%clk 0:00:11.7]} 49. Kc2 {[%clk 0:00:13.8]} 49... Bc6 {[%clk
0:00:11.6]} 50. Ba3 {[%clk 0:00:12.9]} 50... Bg2 {[%clk 0:00:11.3]} 51. Be7
{[%clk 0:00:06.2]} 51... Bf1 {[%clk 0:00:11.9]} 52. Ba3 {[%clk 0:00:03.1]} 52...
Bxe2 {[%clk 0:00:12.6]} 53. Be7 {[%clk 0:00:04.1]} 53... Bd3+ {[%clk 0:00:12.6]}
54. Kb2 {[%clk 0:00:05.4]} 54... Be4 {[%clk 0:00:13.2]} 55. Bf6 {[%clk 0:00:03]}
55... Kd3 {[%clk 0:00:13.3]} 56. Bd4 {[%clk 0:00:04.9]} 56... g5 {[%clk
0:00:12.1]} 57. h4 {[%clk 0:00:05.3]} 57... g4 {[%clk 0:00:11]} 58. Ka3 {[%clk
0:00:05.3]} 58... f4 {[%clk 0:00:09.2]} 59. gxf4 {[%clk 0:00:02.8]} 59... g3
{[%clk 0:00:09.7]} 0-1

[Event "*** Titled Tuesday Blitz"]
[Site "Chess.com"]
[Date "2018.01.02"]
[Round "9"]
[White "Bryakin_Mikhail"]
[Black "Kirill_Klukin"]
[Result "1-0"]
[WhiteElo "2533"]
[BlackElo "2448"]
[TimeControl "180+2"]
[EndTime "15:02:57 PST"]
[Termination "Bryakin_Mikhail won by resignation"]

1. d4 {[%clk 0:03:00.6]} 1... Nf6 {[%clk 0:03:00.5]} 2. Bf4 {[%clk 0:02:58.9]}
2... g6 {[%clk 0:03:01.4]} 3. Nc3 {[%clk 0:03:00.4]} 3... Bg7 {[%clk 0:03:03]}
4. Qd2 {[%clk 0:03:01.9]} 4... d5 {[%clk 0:02:59.5]} 5. h4 {[%clk 0:03:03]} 5...
h6 {[%clk 0:02:56.1]} 6. f3 {[%clk 0:03:01.7]} 6... c6 {[%clk 0:02:53.8]} 7. g4
{[%clk 0:03:02.9]} 7... Nbd7 {[%clk 0:02:48.8]} 8. O-O-O {[%clk 0:03:03.8]} 8...
Nf8 {[%clk 0:02:49.4]} 9. e3 {[%clk 0:03:02.8]} 9... Ne6 {[%clk 0:02:50.1]} 10.
Be5 {[%clk 0:03:02.4]} 10... b5 {[%clk 0:02:40.7]} 11. Bd3 {[%clk 0:02:59.6]}
11... a5 {[%clk 0:02:39.8]} 12. h5 {[%clk 0:02:55.3]} 12... g5 {[%clk
0:02:37.6]} 13. Nge2 {[%clk 0:02:51.6]} 13... Ba6 {[%clk 0:02:37.6]} 14. Rhg1
{[%clk 0:02:51.8]} 14... a4 {[%clk 0:02:11.6]} 15. a3 {[%clk 0:02:47.9]} 15...
Qb6 {[%clk 0:02:11.5]} 16. Na2 {[%clk 0:02:41.5]} 16... c5 {[%clk 0:02:08]} 17.
dxc5 {[%clk 0:02:40.6]} 17... Nxc5 {[%clk 0:02:09.3]} 18. Nb4 {[%clk 0:02:41.8]}
18... Bb7 {[%clk 0:02:09.6]} 19. Nd4 {[%clk 0:02:40.2]} 19... Rc8 {[%clk
0:01:54.7]} 20. Bxb5+ {[%clk 0:02:39.2]} 20... Kf8 {[%clk 0:01:48.3]} 21. Kb1
{[%clk 0:02:35.8]} 21... e6 {[%clk 0:01:34.4]} 22. Bd3 {[%clk 0:02:21.8]} 22...
Ncd7 {[%clk 0:01:31.9]} 23. Bh2 {[%clk 0:02:12.1]} 23... Ne8 {[%clk 0:01:31.6]}
24. c3 {[%clk 0:02:04]} 24... Nd6 {[%clk 0:01:31.3]} 25. f4 {[%clk 0:02:04.9]}
25... Nc4 {[%clk 0:01:31.7]} 26. Qf2 {[%clk 0:01:59.5]} 26... Nc5 {[%clk
0:01:30.5]} 27. Bc2 {[%clk 0:01:54.7]} 27... Ne4 {[%clk 0:01:07.1]} 28. Bxe4
{[%clk 0:01:55.5]} 28... dxe4 {[%clk 0:01:09]} 29. fxg5 {[%clk 0:01:54]} 29...
hxg5 {[%clk 0:01:09.7]} 30. Rgf1 {[%clk 0:01:46.7]} 30... f6 {[%clk 0:00:59.3]}
31. Ndc2 {[%clk 0:01:14]} 31... Ke8 {[%clk 0:00:34.3]} 32. Rd4 {[%clk
0:01:08.6]} 32... Rf8 {[%clk 0:00:34.4]} 33. Rfd1 {[%clk 0:01:04.7]} 33... Rf7
{[%clk 0:00:34.5]} 34. Bg3 {[%clk 0:00:55]} 34... f5 {[%clk 0:00:33.5]} 35. Rd6
{[%clk 0:00:49.4]} 35... Nxd6 {[%clk 0:00:30.2]} 36. Rxd6 {[%clk 0:00:51.3]}
36... Qb5 {[%clk 0:00:26.3]} 37. Rxe6+ {[%clk 0:00:51.4]} 37... Kf8 {[%clk
0:00:27.7]} 38. h6 {[%clk 0:00:45.4]} 38... Bh8 {[%clk 0:00:21.6]} 39. Bd6+
{[%clk 0:00:45.3]} 39... Kg8 {[%clk 0:00:22.3]} 40. Rg6+ {[%clk 0:00:37.2]}
40... Kh7 {[%clk 0:00:23.1]} 41. Rxg5 {[%clk 0:00:38.4]} 41... Rd8 {[%clk
0:00:18.4]} 42. Qf4 {[%clk 0:00:28.5]} 42... Bc8 {[%clk 0:00:15.6]} 43. Nd4
{[%clk 0:00:24.3]} 43... Bxd4 {[%clk 0:00:15.5]} 44. cxd4 {[%clk 0:00:25.4]}
44... Qc4 {[%clk 0:00:14]} 45. Be5 {[%clk 0:00:20.8]} 45... fxg4 {[%clk
0:00:12.1]} 46. Rg7+ {[%clk 0:00:20.6]} 46... Rxg7 {[%clk 0:00:13.4]} 47. hxg7
{[%clk 0:00:22.5]} 47... Qe6 {[%clk 0:00:12.9]} 48. d5 {[%clk 0:00:14.9]} 48...
Qf5 {[%clk 0:00:13.6]} 49. Qh2+ {[%clk 0:00:15.3]} 49... Kg6 {[%clk 0:00:15]}
50. Qh8 {[%clk 0:00:11.9]} 50... Qf1+ {[%clk 0:00:16.2]} 51. Kc2 {[%clk
0:00:11.6]} 51... Qe2+ {[%clk 0:00:15.4]} 52. Kc3 {[%clk 0:00:11.7]} 52... Qe1+
{[%clk 0:00:15.5]} 53. Kc4 {[%clk 0:00:12.7]} 53... Qf1+ {[%clk 0:00:13.3]} 54.
Kc5 {[%clk 0:00:13.7]} 54... Qc1+ {[%clk 0:00:11.4]} 55. Kb6 {[%clk 0:00:14.7]}
55... Qxe3+ {[%clk 0:00:10.6]} 56. Kc7 {[%clk 0:00:13.1]} 56... Qa7+ {[%clk
0:00:09.3]} 57. Kc6 {[%clk 0:00:11.9]} 57... Bd7+ {[%clk 0:00:08.9]} 58. Kd6
{[%clk 0:00:12.5]} 58... Qb8+ {[%clk 0:00:09.4]} 59. Ke7 {[%clk 0:00:13.2]}
59... Rf8 {[%clk 0:00:10.6]} 60. gxf8=Q {[%clk 0:00:08.9]} 60... Qxe5+ {[%clk
0:00:11.1]} 61. Qxe5 {[%clk 0:00:09.2]} 1-0

[Event "*** Titled Tuesday Blitz"]
[Site "Chess.com"]
[Date "2018.01.02"]
[Round "9"]
[White "Maitreia"]
[Black "mokerslag"]
[Result "0-1"]
[WhiteElo "2530"]
[BlackElo "2373"]
[TimeControl "180+2"]
[EndTime "15:03:12 PST"]
[Termination "mokerslag won on time"]

1. c4 {[%clk 0:03:01.9]} 1... Nf6 {[%clk 0:03:00.5]} 2. g3 {[%clk 0:03:03.4]}
2... g6 {[%clk 0:03:01.7]} 3. Bg2 {[%clk 0:03:05]} 3... Bg7 {[%clk 0:03:03.6]}
4. Nf3 {[%clk 0:03:06.6]} 4... O-O {[%clk 0:03:05.3]} 5. O-O {[%clk 0:03:08.2]}
5... d6 {[%clk 0:03:07]} 6. Nc3 {[%clk 0:03:09.5]} 6... Nc6 {[%clk 0:03:08.1]}
7. Rb1 {[%clk 0:03:09.9]} 7... a6 {[%clk 0:03:09.3]} 8. b4 {[%clk 0:03:10.3]}
8... Rb8 {[%clk 0:03:10.6]} 9. a4 {[%clk 0:03:11.3]} 9... a5 {[%clk 0:03:07.4]}
10. b5 {[%clk 0:03:12.3]} 10... Nb4 {[%clk 0:03:08.8]} 11. Ba3 {[%clk
0:03:11.9]} 11... c5 {[%clk 0:03:08.6]} 12. bxc6 {[%clk 0:03:13.7]} 12... bxc6
{[%clk 0:03:08.5]} 13. Na2 {[%clk 0:02:59.1]} 13... c5 {[%clk 0:03:07.4]} 14.
Nc1 {[%clk 0:02:55.5]} 14... Bd7 {[%clk 0:03:04.2]} 15. d3 {[%clk 0:02:53.6]}
15... Qe8 {[%clk 0:03:03.1]} 16. Bxb4 {[%clk 0:02:52.9]} 16... Bxa4 {[%clk
0:02:59.4]} 17. Qd2 {[%clk 0:02:50.7]} 17... axb4 {[%clk 0:02:59]} 18. Nb3
{[%clk 0:02:51.4]} 18... Ra8 {[%clk 0:02:45.9]} 19. h4 {[%clk 0:02:47.5]} 19...
Bc6 {[%clk 0:02:32.5]} 20. Ra1 {[%clk 0:02:46.1]} 20... Qd7 {[%clk 0:02:27.7]}
21. Nxc5 {[%clk 0:02:34.1]} 21... dxc5 {[%clk 0:02:13.4]} 22. Ne5 {[%clk
0:02:30.4]} 22... Rxa1 {[%clk 0:02:06.7]} 23. Nxd7 {[%clk 0:02:23.8]} 23...
Rxf1+ {[%clk 0:02:07.5]} 24. Kxf1 {[%clk 0:02:21.4]} 24... Bxg2+ {[%clk
0:02:05.4]} 25. Kxg2 {[%clk 0:02:23.3]} 25... Nxd7 {[%clk 0:02:06.6]} 26. e3
{[%clk 0:02:23]} 26... Bc3 {[%clk 0:02:06.7]} 27. Qc2 {[%clk 0:02:22.4]} 27...
Ra8 {[%clk 0:02:05]} 28. Qb1 {[%clk 0:02:20.4]} 28... Ne5 {[%clk 0:02:00.3]} 29.
d4 {[%clk 0:02:19.9]} 29... cxd4 {[%clk 0:01:46.2]} 30. Qe4 {[%clk 0:02:20.9]}
30... Ra5 {[%clk 0:01:31.8]} 31. exd4 {[%clk 0:02:18.2]} 31... Nxc4 {[%clk
0:01:29.2]} 32. Qxe7 {[%clk 0:02:15]} 32... Ra8 {[%clk 0:01:26.2]} 33. h5 {[%clk
0:02:15.4]} 33... Bxd4 {[%clk 0:01:07.6]} 34. Qxb4 {[%clk 0:02:15.4]} 34... Rc8
{[%clk 0:01:05.8]} 35. Qb7 {[%clk 0:02:13]} 35... Rd8 {[%clk 0:00:57.5]} 36. Qc7
{[%clk 0:02:10.1]} 36... Rd6 {[%clk 0:00:37.2]} 37. hxg6 {[%clk 0:02:07.4]}
37... hxg6 {[%clk 0:00:35.5]} 38. Qxc4 {[%clk 0:02:08.2]} 38... Bf6 {[%clk
0:00:35.2]} 39. Qf4 {[%clk 0:02:02.3]} 39... Re6 {[%clk 0:00:36]} 40. Qb4 {[%clk
0:02:01]} 40... Kg7 {[%clk 0:00:37.2]} 41. f4 {[%clk 0:02:01]} 41... Be7 {[%clk
0:00:37.3]} 42. Qd4+ {[%clk 0:02:01.6]} 42... Bf6 {[%clk 0:00:38.6]} 43. Qc4
{[%clk 0:02:03.2]} 43... Rd6 {[%clk 0:00:36.3]} 44. Qc5 {[%clk 0:02:02.6]} 44...
Rd2+ {[%clk 0:00:36.1]} 45. Kf3 {[%clk 0:02:03.2]} 45... Rd3+ {[%clk 0:00:36.9]}
46. Kg2 {[%clk 0:02:03.9]} 46... Rd2+ {[%clk 0:00:38.2]} 47. Kh3 {[%clk
0:02:00.7]} 47... Rd3 {[%clk 0:00:39.4]} 48. Qb5 {[%clk 0:01:55]} 48... Rc3
{[%clk 0:00:40.4]} 49. Qa5 {[%clk 0:01:46.5]} 49... Rd3 {[%clk 0:00:41.2]} 50.
Kg2 {[%clk 0:01:45]} 50... Rc3 {[%clk 0:00:41.8]} 51. g4 {[%clk 0:01:42.8]}
51... Rc2+ {[%clk 0:00:38.6]} 52. Kf3 {[%clk 0:01:43.2]} 52... Rc3+ {[%clk
0:00:39.3]} 53. Ke4 {[%clk 0:01:44.7]} 53... Rc4+ {[%clk 0:00:38.6]} 54. Ke3
{[%clk 0:01:45.5]} 54... Rc3+ {[%clk 0:00:34.5]} 55. Kd2 {[%clk 0:01:46.8]}
55... Rg3 {[%clk 0:00:26.8]} 56. g5 {[%clk 0:01:47.5]} 56... Bc3+ {[%clk
0:00:25.1]} 57. Qxc3+ {[%clk 0:01:48.6]} 57... Rxc3 {[%clk 0:00:27]} 58. Kxc3
{[%clk 0:01:50.5]} 58... f6 {[%clk 0:00:28.1]} 59. Kd4 {[%clk 0:01:50.5]} 59...
Kf7 {[%clk 0:00:27.2]} 60. Kd5 {[%clk 0:01:51]} 60... Ke7 {[%clk 0:00:25.4]} 61.
Kd4 {[%clk 0:01:34.8]} 61... Ke6 {[%clk 0:00:23.7]} 62. Ke4 {[%clk 0:01:31.5]}
62... f5+ {[%clk 0:00:21.3]} 63. Ke3 {[%clk 0:01:29]} 63... Kd7 {[%clk
0:00:18.3]} 64. Kd4 {[%clk 0:01:30.9]} 64... Kd6 {[%clk 0:00:19.7]} 65. Kc4
{[%clk 0:01:31.6]} 65... Kc6 {[%clk 0:00:21.1]} 66. Kc3 {[%clk 0:01:27.4]} 66...
Kc5 {[%clk 0:00:21.5]} 67. Kd3 {[%clk 0:01:26.3]} 67... Kd5 {[%clk 0:00:23.1]}
68. Ke3 {[%clk 0:01:21.7]} 68... Kc4 {[%clk 0:00:24.5]} 0-1

[Event "*** Titled Tuesday Blitz"]
[Site "Chess.com"]
[Date "2018.01.02"]
[Round "9"]
[White "Robert_Chessmood"]
[Black "Superfelix"]
[Result "1-0"]
[WhiteElo "2721"]
[BlackElo "2350"]
[TimeControl "180+2"]
[EndTime "15:04:05 PST"]
[Termination "Robert_Chessmood won by resignation"]

1. e4 {[%clk 0:03:01.9]} 1... c6 {[%clk 0:03:00.4]} 2. d4 {[%clk 0:03:00.7]}
2... g6 {[%clk 0:03:01.7]} 3. Nc3 {[%clk 0:02:58.5]} 3... d5 {[%clk 0:03:03.1]}
4. Nf3 {[%clk 0:02:58]} 4... dxe4 {[%clk 0:03:04.3]} 5. Nxe4 {[%clk 0:02:58.3]}
5... Nf6 {[%clk 0:03:05.8]} 6. Bd3 {[%clk 0:02:54.9]} 6... Bg7 {[%clk
0:03:06.8]} 7. O-O {[%clk 0:02:52.1]} 7... O-O {[%clk 0:03:08.2]} 8. Re1 {[%clk
0:02:50.3]} 8... a5 {[%clk 0:03:09.4]} 9. Bg5 {[%clk 0:02:45.6]} 9... Na6 {[%clk
0:03:10.4]} 10. Qd2 {[%clk 0:02:41.9]} 10... Nb4 {[%clk 0:03:09.5]} 11. Bf1
{[%clk 0:02:42]} 11... Bf5 {[%clk 0:03:06.3]} 12. Bxf6 {[%clk 0:02:31]} 12...
exf6 {[%clk 0:03:05.6]} 13. c3 {[%clk 0:02:32]} 13... Nd5 {[%clk 0:03:06]} 14.
Bd3 {[%clk 0:02:29.5]} 14... b6 {[%clk 0:03:02.4]} 15. Re2 {[%clk 0:02:22.6]}
15... Qc7 {[%clk 0:03:00]} 16. Ng3 {[%clk 0:02:06.3]} 16... Bxd3 {[%clk
0:02:57.6]} 17. Qxd3 {[%clk 0:02:07.5]} 17... Nf4 {[%clk 0:02:58.3]} 18. Qc2
{[%clk 0:02:07.5]} 18... Nxe2+ {[%clk 0:02:59.2]} 19. Nxe2 {[%clk 0:02:09.1]}
19... Rfe8 {[%clk 0:02:59.2]} 20. g3 {[%clk 0:02:07.2]} 20... Bh6 {[%clk
0:02:54.9]} 21. Nc1 {[%clk 0:02:03.8]} 21... c5 {[%clk 0:02:50.5]} 22. dxc5
{[%clk 0:01:59]} 22... Qxc5 {[%clk 0:02:49]} 23. Nb3 {[%clk 0:01:59.7]} 23...
Qd5 {[%clk 0:02:42.9]} 24. Nbd4 {[%clk 0:01:59.5]} 24... Rad8 {[%clk 0:02:35.7]}
25. a4 {[%clk 0:01:54.1]} 25... Bg7 {[%clk 0:02:30.2]} 26. Qb3 {[%clk
0:01:34.4]} 26... Qxb3 {[%clk 0:02:29.8]} 27. Nxb3 {[%clk 0:01:36.3]} 27... Re2
{[%clk 0:02:29.2]} 28. Rb1 {[%clk 0:01:30.7]} 28... f5 {[%clk 0:02:29.7]} 29.
Nbd4 {[%clk 0:01:29.6]} 29... Re4 {[%clk 0:02:16.9]} 30. Ra1 {[%clk 0:01:25.3]}
30... h6 {[%clk 0:02:15.4]} 31. Ra3 {[%clk 0:01:20.2]} 31... g5 {[%clk
0:02:10.3]} 32. Nxf5 {[%clk 0:01:15.8]} 32... Re2 {[%clk 0:02:09]} 33. Rb3
{[%clk 0:01:07]} 33... g4 {[%clk 0:02:04.1]} 34. N3d4 {[%clk 0:01:04.9]} 34...
Re1+ {[%clk 0:01:56]} 35. Kg2 {[%clk 0:01:05.3]} 35... Bxd4 {[%clk 0:01:56.7]}
36. cxd4 {[%clk 0:00:55.3]} 36... Rd5 {[%clk 0:01:52.7]} 37. Nxh6+ {[%clk
0:00:55.1]} 37... Kg7 {[%clk 0:01:53.7]} 38. Nxg4 {[%clk 0:00:49.8]} 38... Rxd4
{[%clk 0:01:54.4]} 39. Ne3 {[%clk 0:00:39.1]} 39... Rxa4 {[%clk 0:01:54.3]} 40.
Rxb6 {[%clk 0:00:37.5]} 40... Rb4 {[%clk 0:01:52.6]} 41. Nf5+ {[%clk 0:00:31.3]}
41... Kh7 {[%clk 0:01:49]} 42. Rh6+ {[%clk 0:00:31.2]} 42... Kg8 {[%clk
0:01:49.9]} 43. Ra6 {[%clk 0:00:31.5]} 43... Rxb2 {[%clk 0:01:45.2]} 44. Rxa5
{[%clk 0:00:30.3]} 44... Ree2 {[%clk 0:01:44.8]} 45. Nh6+ {[%clk 0:00:31.3]}
45... Kh7 {[%clk 0:01:44.8]} 46. Ng4 {[%clk 0:00:32.3]} 46... Kg6 {[%clk
0:01:42.8]} 47. h4 {[%clk 0:00:25]} 47... f5 {[%clk 0:01:36.7]} 48. Ne5+ {[%clk
0:00:26.1]} 48... Kf6 {[%clk 0:01:26.8]} 49. Nd3 {[%clk 0:00:25.6]} 49... Rbd2
{[%clk 0:01:20.7]} 50. Kf3 {[%clk 0:00:19.4]} 50... Re4 {[%clk 0:01:13.2]} 51.
Nf4 {[%clk 0:00:17]} 51... Rb2 {[%clk 0:01:06.2]} 52. Ra6+ {[%clk 0:00:17.5]}
52... Kf7 {[%clk 0:01:05.7]} 53. Ra7+ {[%clk 0:00:18.1]} 53... Ke8 {[%clk
0:01:01.8]} 54. h5 {[%clk 0:00:17.3]} 54... Rb3+ {[%clk 0:01:02.6]} 55. Kg2
{[%clk 0:00:17.8]} 55... Rb6 {[%clk 0:00:56.1]} 56. Kf3 {[%clk 0:00:14.5]} 56...
Rb3+ {[%clk 0:00:45.1]} 57. Kg2 {[%clk 0:00:15.4]} 57... Rb6 {[%clk 0:00:46.7]}
58. Ra5 {[%clk 0:00:15.5]} 58... Rf6 {[%clk 0:00:44.2]} 59. Kf3 {[%clk
0:00:16.2]} 59... Rb4 {[%clk 0:00:43.9]} 60. Nd5 {[%clk 0:00:14.7]} 60... Rb3+
{[%clk 0:00:45.1]} 61. Kf4 {[%clk 0:00:15.9]} 61... Rd6 {[%clk 0:00:38.5]} 62.
Ne3 {[%clk 0:00:13.9]} 62... Rf6 {[%clk 0:00:33.9]} 63. Rxf5 {[%clk 0:00:12]}
63... Re6 {[%clk 0:00:33.3]} 64. Ra5 {[%clk 0:00:10.9]} 64... Rb4+ {[%clk
0:00:34.5]} 65. Kf3 {[%clk 0:00:11.4]} 65... Rf6+ {[%clk 0:00:35.3]} 66. Kg2
{[%clk 0:00:12.2]} 66... Rb2 {[%clk 0:00:36.5]} 67. Rf5 {[%clk 0:00:12.4]} 67...
Rc6 {[%clk 0:00:37.4]} 68. g4 {[%clk 0:00:13.4]} 68... Rb4 {[%clk 0:00:36.4]}
69. Kg3 {[%clk 0:00:14.3]} 69... Rc3 {[%clk 0:00:37.4]} 70. Re5+ {[%clk
0:00:14.8]} 70... Kf7 {[%clk 0:00:35.8]} 71. g5 {[%clk 0:00:15.1]} 71... Rb1
{[%clk 0:00:36.8]} 72. g6+ {[%clk 0:00:15.7]} 72... Kf6 {[%clk 0:00:37.3]} 73.
Rf5+ {[%clk 0:00:16.9]} 73... Kg7 {[%clk 0:00:37.5]} 74. Kf4 {[%clk 0:00:17.3]}
74... Rb4+ {[%clk 0:00:37.1]} 75. Kg5 {[%clk 0:00:15.5]} 75... Rb7 {[%clk
0:00:35.5]} 76. h6+ {[%clk 0:00:16.5]} 76... Kg8 {[%clk 0:00:36.8]} 77. Ng4
{[%clk 0:00:14.7]} 77... Rc1 {[%clk 0:00:26.7]} 78. Nf6+ {[%clk 0:00:15.3]}
78... Kh8 {[%clk 0:00:24.3]} 79. g7+ {[%clk 0:00:16.8]} 79... Rxg7+ {[%clk
0:00:25.6]} 80. hxg7+ {[%clk 0:00:18.7]} 80... Kxg7 {[%clk 0:00:27.2]} 81. Nh5+
{[%clk 0:00:20.3]} 81... Kh8 {[%clk 0:00:27.2]} 82. Nf6 {[%clk 0:00:19.4]} 82...
Kg7 {[%clk 0:00:27.5]} 83. Ng4 {[%clk 0:00:19.9]} 83... Rg1 {[%clk 0:00:27.4]}
84. f4 {[%clk 0:00:19.8]} 84... Rb1 {[%clk 0:00:28.3]} 85. Rd5 {[%clk
0:00:20.4]} 85... Rb7 {[%clk 0:00:30.2]} 86. Ne5 {[%clk 0:00:20.5]} 86... Ra7
{[%clk 0:00:31.8]} 87. Rd7+ {[%clk 0:00:21.3]} 1-0